fUSD/lending_fUSD_20241206
["ID","MTS","AMOUNT","RATE_DAILY","PERIOD"]
[344428424,1733454664130,-2000.0,0.00025,20]
[344428425,1733454664141,-150.0,0.00025,2]
[344428426,1733454664151,-9000.0,0.00025,120]
[344428427,1733454664161,-10000.0,0.00025,2]
[344428428,1733454664172,-14317.0,0.00025,2]
[344428429,1733454664182,-18387.23502593,0.00025,15]
[344428430,1733454664193,-3000.0,0.00025,2]
[344428431,1733454664204,-4157.68,0.00025,30]
[344428432,1733454664217,-120549.22168373,0.00025,2]
[344428433,1733454664228,-1023.01797558,0.00025,60]
[344428434,1733454664239,-2371.97310056,0.00025,30]
[344428435,1733454664250,-102272.47299922,0.00025,2]
[344428436,1733454664261,-3343.28203842,0.00025,60]
[344428437,1733454664271,-248.03229919,0.00025,2]
[344428438,1733454664281,-2684.24734044,0.00025,10]
[344428439,1733454664292,-1589.86332564,0.00025,2]
[344428440,1733454664302,-254.17312505,0.00025,2]
[344428441,1733454664313,-1487.19331158,0.00025,60]
[344428442,1733454664325,-2906.3082798,0.00025,2]
[344428443,1733454664336,-15036.03331538,0.00025,14]
[344428444,1733454664347,-200.00121317,0.00025,2]
[344428445,1733454664358,-3425.3090393,0.00025,2]
[344428446,1733454664369,-7179.95914428,0.00025,2]
[344428447,1733454664383,-25000.0,0.00025,60]
[344428448,1733454664394,-5000.0,0.00025,2]
[344428449,1733454664406,-25000.0,0.00025,30]
[344428450,1733454664416,-416.12,0.00025,2]
[344428451,1733454664426,-762.0,0.00025,2]
[344428452,1733454664436,-80000.0,0.00025,30]
[344428453,1733454664447,-34073.86836074,0.00025,30]
[344428454,1733454664458,-300.0,0.00025,30]
[344428455,1733454664470,-300.639967,0.00025,120]
[344428456,1733454664481,-157.5582726,0.00025,10]
[344428457,1733454664492,-2004.0,0.00025,2]
[344428458,1733454664502,-631.0,0.00025,2]
[344428459,1733454664513,-730.61819745,0.00025,2]
[344428460,1733454664524,-1893.0,0.00025,2]
[344428461,1733454664534,-563.0,0.00025,2]
[344428462,1733454664547,-1252.0,0.00025,2]
[344428463,1733454664559,-3761.0,0.00025,2]
[344428464,1733454664569,-816.0,0.00025,2]
[344428465,1733454664579,-3529.0,0.00025,2]
[344428466,1733454664589,-535.0,0.00025,2]
[344428467,1733454664599,-973.0,0.00025,2]
[344428468,1733454664610,-150.2,0.00025,2]
[344428469,1733454664620,-202.2,0.00025,2]
[344428470,1733454664630,-202.2,0.00025,2]
[344428471,1733454664641,-306.82,0.00025,2]
[344428472,1733454664651,-306.82,0.00025,2]
[344428473,1733454664661,-782.0,0.00025,13]
[344428474,1733454664672,-1009.28,0.00025,2]
[344428475,1733454664682,-1009.28,0.00025,2]
[344428476,1733454664692,-700.0,0.00025,2]
[344428477,1733454664702,-700.0,0.00025,2]
[344428478,1733454664712,-5964.0,0.00025,2]
[344428479,1733454664725,-150.0,0.00025,2]
[344428480,1733454664735,-714.539,0.00025,2]
[344428481,1733454664746,-2110.0,0.00025013,2]
[344428482,1733454664756,-603.64818877,0.0002502,4]
[344428483,1733454664767,-386.259157,0.0002502,4]
[344428484,1733454664777,-150.0,0.00025053,4]
[344428485,1733454664788,-1500.0,0.0002506,7]
[344428486,1733454664798,-150.0,0.00025064,4]
[344428487,1733454664808,-500.0,0.0002507,120]
[344428488,1733454664819,-150.0,0.00025105,4]
[344428489,1733454664828,-603.64818877,0.00025119,4]
[344428490,1733454664838,-386.259157,0.00025119,4]
[344428491,1733454664848,-8140.46532259,0.00025124,2]
[344428492,1733454664858,-150.0,0.00025133,4]
[344428493,1733454664870,-1500.0,0.00025141,7]
[344428494,1733454664883,-333.120505,0.00025148,9]
[344428495,1733454664894,-600.0,0.000252,2]
[344428496,1733454664904,-600.0,0.000252,2]
[344428497,1733454664915,-600.0,0.000252,2]
[344428498,1733454664925,-600.0,0.000252,2]
[344428499,1733454664936,-600.0,0.000252,2]
[344428500,1733454664946,-600.0,0.000252,2]
[344428501,1733454664957,-600.0,0.000252,2]
[344428502,1733454664968,-600.0,0.000252,2]
[344428503,1733454664978,-600.0,0.000252,2]
[344428504,1733454664988,-600.0,0.000252,2]
[344428505,1733454664998,-500.0,0.000252,2]
[344428506,1733454665008,-600.0,0.000252,2]
[344428507,1733454665018,-1000.0,0.000252,2]
[344428508,1733454665028,-500.0,0.000252,2]
[344428509,1733454665038,-500.0,0.000252,2]
[344428510,1733454665048,-600.0,0.000252,2]
[344428511,1733454665057,-600.0,0.000252,2]
[344428512,1733454665068,-600.0,0.000252,2]
[344428513,1733454665078,-600.0,0.000252,2]
[344428514,1733454665088,-600.0,0.000252,2]
[344428515,1733454665097,-500.0,0.000252,2]
[344428516,1733454665107,-500.0,0.000252,2]
[344428517,1733454665117,-600.0,0.000252,2]
[344428518,1733454665127,-600.0,0.000252,2]
[344428519,1733454665138,-600.0,0.000252,2]
[344428520,1733454665148,-600.0,0.000252,2]
[344428521,1733454665158,-600.0,0.000252,2]
[344428522,1733454665400,-600.0,0.000252,2]
[344428523,1733454665438,-600.0,0.000252,2]
[344428524,1733454665448,-600.0,0.000252,2]
[344428525,1733454665458,-600.0,0.000252,2]
[344428526,1733454665471,-500.0,0.000252,2]
[344428527,1733454665480,-500.0,0.000252,2]
[344428528,1733454665491,-500.0,0.000252,2]
[344428529,1733454665501,-500.0,0.000252,2]
[344428530,1733454665512,-500.0,0.000252,2]
[344428531,1733454665522,-500.0,0.000252,2]
[344428532,1733454665532,-500.0,0.000252,2]
[344428533,1733454665542,-500.0,0.000252,2]
[344428534,1733454665552,-500.0,0.000252,2]
[344428535,1733454665561,-500.0,0.000252,2]
[344428536,1733454665571,-500.0,0.000252,2]
[344428537,1733454665582,-500.0,0.000252,2]
[344428538,1733454665591,-500.0,0.000252,2]
[344428539,1733454665601,-500.0,0.000252,2]
[344428540,1733454665611,-500.0,0.000252,2]
[344428541,1733454665621,-500.0,0.000252,2]
[344428542,1733454665631,-900.0,0.000252,2]
[344428543,1733454665641,-500.0,0.000252,2]
[344428544,1733454665651,-500.0,0.000252,2]
[344428545,1733454665660,-500.0,0.000252,2]
[344428546,1733454665670,-500.0,0.000252,2]
[344428547,1733454665680,-500.0,0.000252,2]
[344428548,1733454665689,-500.0,0.000252,2]
[344428549,1733454665699,-500.0,0.000252,2]
[344428550,1733454665709,-500.0,0.000252,2]
[344428551,1733454665724,-500.0,0.000252,2]
[344428552,1733454665734,-500.0,0.000252,2]
[344428553,1733454665745,-500.0,0.000252,2]
[344428554,1733454665754,-500.0,0.000252,2]
[344428555,1733454665764,-500.0,0.000252,2]
[344428556,1733454665774,-500.0,0.000252,2]
[344428557,1733454665784,-500.0,0.000252,2]
[344428558,1733454665794,-500.0,0.000252,2]
[344428559,1733454665804,-500.0,0.000252,2]
[344428560,1733454665814,-500.0,0.000252,2]
[344428561,1733454665828,-500.0,0.000252,2]
[344428562,1733454665838,-500.0,0.000252,2]
[344428563,1733454665848,-732.04834143,0.000252,2]
[344428564,1733454665857,-500.0,0.000252,2]
[344428565,1733454665868,-500.0,0.000252,2]
[344428566,1733454665881,-916.30551195,0.000252,2]
[344428567,1733454665890,-500.0,0.000252,2]
[344428568,1733454665900,-500.0,0.000252,2]
[344428569,1733454665910,-810.30323107,0.000252,2]
[344428570,1733454665923,-535.99186799,0.000252,2]
[344428571,1733454665932,-500.0,0.000252,2]
[344428572,1733454665942,-500.0,0.000252,2]
[344428573,1733454665952,-500.0,0.000252,2]
[344428574,1733454665962,-500.0,0.000252,2]
[344428575,1733454665974,-500.0,0.000252,2]
[344428576,1733454665984,-500.0,0.000252,2]
[344428577,1733454665994,-500.0,0.000252,2]
[344428578,1733454666003,-500.0,0.000252,2]
[344428579,1733454666013,-500.0,0.000252,2]
[344428580,1733454666022,-500.0,0.000252,2]
[344428581,1733454666032,-611.98996891,0.000252,2]
[344428582,1733454666042,-150.0,0.00025209,4]
[344428583,1733454666052,-603.64818877,0.00025219,4]
[344428584,1733454666061,-386.259157,0.00025219,4]
[344428585,1733454666071,-1500.0,0.00025222,7]
[344428586,1733454666082,-150.0,0.00025274,4]
[344428587,1733454666092,-161.6046166,0.00025274,4]
[344428588,1733454666102,-150.01815829,0.00025274,4]
[344428589,1733454666111,-150.01640331,0.00025274,4]
[344428590,1733454666121,-150.0,0.00025274,4]
[344428591,1733454666130,-243.8757647,0.00025274,4]
[344428592,1733454666140,-150.0,0.00025274,4]
[344428593,1733454666149,-222.87011284,0.00025274,2]
[344428594,1733454666159,-161.97048616,0.00025274,4]
[344428595,1733454666168,-150.0,0.00025274,4]
[344428596,1733454666178,-150.01659017,0.00025274,4]
[344428597,1733454666188,-500.0,0.00025274,4]
[344428598,1733454666197,-150.0,0.00025274,4]
[344428599,1733454666207,-150.0,0.00025274,4]
[344428600,1733454666217,-150.0,0.00025281,4]
[344428601,1733454666227,-4444.47,0.000253,14]
[344428602,1733454666239,-280.0,0.000253,10]
[344428603,1733454666249,-1500.0,0.00025302,7]
[344428604,1733454666259,-603.64818877,0.00025318,4]
[344428605,1733454666269,-386.259157,0.00025318,4]
[344428606,1733454666278,-150.0,0.0002533,4]
[344428607,1733454666288,-150.0,0.00025354,4]
[344428608,1733454666298,-1500.0,0.00025383,7]
[344428609,1733454666307,-415.0,0.000254,120]
[344428610,1733454666318,-603.64818877,0.00025418,4]
[344428611,1733454666327,-386.259157,0.00025418,4]
[344428612,1733454666337,-150.0,0.00025418,4]
[344428613,1733454666347,-333.120505,0.00025448,9]
[344428614,1733454666356,-5021.30669,0.00025452,30]
[344428615,1733454666366,-1500.0,0.00025463,7]
[344428616,1733454666375,-200.0,0.00025488,120]
[344428617,1733454666385,-150.0,0.00025499,4]
[344428618,1733454666395,-782.0,0.000255,13]
[344428619,1733454666404,-2110.0,0.00025513,2]
[344428620,1733454666414,-603.64818877,0.00025518,4]
[344428621,1733454666423,-386.259157,0.00025518,4]
[344428622,1733454666433,-4236.44,0.00025523,2]
[344428623,1733454666442,-150.0,0.00025528,4]
[344428624,1733454666452,-1500.0,0.00025544,7]
[344428625,1733454666461,-31508.78572648,0.00025545,2]
[344428626,1733454666478,-43406.196467,0.00025547,4]
[344428627,1733454666487,-1078.77287461,0.00025547,4]
[344428628,1733454666497,-150.0,0.00025548,4]
[344428629,1733454666506,-150.0,0.00025548,4]
[344428630,1733454666516,-150.0,0.00025548,4]
[344428631,1733454666526,-150.0,0.00025548,4]
[344428632,1733454666535,-500.0,0.00025548,4]
[344428633,1733454666545,-150.0,0.00025548,4]
[344428634,1733454666554,-583.01596701,0.000256,2]
[344428635,1733454666564,-603.64818877,0.00025617,4]
[344428636,1733454666574,-386.259157,0.00025617,4]
[344428637,1733454666583,-1500.0,0.00025624,7]
[344428638,1733454666593,-202.0,0.0002564,2]
[344428639,1733454666602,-201.0,0.0002564,2]
[344428640,1733454666611,-150.0,0.00025643,4]
[344428641,1733454666621,-1500.0,0.00025705,7]
[344428642,1733454666631,-603.64818877,0.00025717,4]
[344428643,1733454666640,-386.259157,0.00025717,4]
[344428644,1733454666649,-150.0,0.00025725,4]
[344428645,1733454666659,-333.120505,0.00025748,9]
[344428646,1733454666671,-500.0,0.00025777,120]
[344428647,1733454666681,-150.0,0.00025783,4]
[344428648,1733454666691,-1500.0,0.00025786,7]
[344428649,1733454666700,-150.0,0.00025788,4]
[344428650,1733454666709,-150.0,0.00025809,4]
[344428651,1733454666722,-603.64818877,0.00025816,4]
[344428652,1733454666731,-386.259157,0.00025816,4]
[344428653,1733454666741,-150.0,0.00025822,4]
[344428654,1733454666750,-200.0711495,0.00025822,4]
[344428655,1733454666760,-200.17881068,0.00025822,4]
[344428656,1733454666770,-200.04445495,0.00025822,4]
[344428657,1733454666779,-500.0,0.00025822,4]
[344428658,1733454666790,-208.39403723,0.00025822,4]
[344428659,1733454666799,-306.82,0.0002585,2]
[344428660,1733454666808,-306.82,0.0002585,2]
[344428661,1733454666818,-1500.0,0.00025866,7]
[344428662,1733454666828,-5000000.0,0.0002588,2]
[344428663,1733454666837,-954257.68863444,0.0002588,2]
[344428664,1733454666846,-500.0,0.0002588,7]
[344428665,1733454666855,-500.0,0.0002588,7]
[344428666,1733454666864,-180.357714,0.0002588,7]
[344428667,1733454666876,-243.51981,0.0002588,7]
[344428668,1733454666888,-243.51981,0.0002588,7]
[344428669,1733454666897,-151.0,0.0002588,7]
[344428670,1733454666906,-151.0,0.0002588,7]
[344428671,1733454666917,-151.0,0.0002588,7]
[344428672,1733454666926,-253.646066,0.0002588,7]
[344428673,1733454666935,-253.646066,0.0002588,7]
[344428674,1733454666946,-1071.93706,0.0002588,7]
[344428675,1733454666957,-1188.331915,0.0002588,7]
[344428676,1733454666968,-1071.93706,0.0002588,7]
[344428677,1733454666977,-1188.331915,0.0002588,7]
[344428678,1733454666986,-175.839878,0.0002588,7]
[344428679,1733454666996,-175.839878,0.0002588,7]
[344428680,1733454667005,-151.0,0.0002588,7]
[344428681,1733454667014,-151.0,0.0002588,7]
[344428682,1733454667024,-151.830742,0.0002588,7]
[344428683,1733454667033,-151.830742,0.0002588,7]
[344428684,1733454667043,-416.250046,0.0002588,7]
[344428685,1733454667053,-416.250046,0.0002588,7]
[344428686,1733454667063,-151.0,0.0002588,7]
[344428687,1733454667072,-151.0,0.0002588,7]
[344428688,1733454667081,-374.932628,0.0002588,7]
[344428689,1733454667090,-374.932628,0.0002588,7]
[344428690,1733454667100,-830.023112,0.0002588,7]
[344428691,1733454667110,-830.023112,0.0002588,7]
[344428692,1733454667119,-363.459314,0.0002588,7]
[344428693,1733454667129,-363.459314,0.0002588,7]
[344428694,1733454667138,-241.853283,0.0002588,7]
[344428695,1733454667147,-241.853283,0.0002588,7]
[344428696,1733454667157,-151.0,0.0002588,7]
[344428697,1733454667166,-442.30676,0.0002588,7]
[344428698,1733454667175,-442.30676,0.0002588,7]
[344428699,1733454667185,-151.0,0.0002588,7]
[344428700,1733454667194,-238.794024,0.0002588,7]
[344428701,1733454667203,-151.843547,0.0002588,7]
[344428702,1733454667217,-430.332449,0.0002588,7]
[344428703,1733454667227,-430.332449,0.0002588,7]
[344428704,1733454667236,-151.0,0.0002588,7]
[344428705,1733454667246,-499.605243,0.0002588,7]
[344428706,1733454667255,-269.968608,0.0002588,7]
[344428707,1733454667265,-499.605243,0.0002588,7]
[344428708,1733454667275,-269.968608,0.0002588,7]
[344428709,1733454667284,-166.216216,0.0002588,7]
[344428710,1733454667294,-166.216216,0.0002588,7]
[344428711,1733454667303,-708.106738,0.0002588,7]
[344428712,1733454667313,-151.0,0.0002588,7]
[344428713,1733454667322,-336.414902,0.0002588,7]
[344428714,1733454667332,-336.414902,0.0002588,7]
[344428715,1733454667341,-151.0,0.0002588,7]
[344428716,1733454667350,-151.0,0.0002588,7]
[344428717,1733454667360,-151.0,0.0002588,7]
[344428718,1733454667371,-151.0,0.0002588,7]
[344428719,1733454667380,-151.0,0.0002588,7]
[344428720,1733454667392,-151.0,0.0002588,7]
[344428721,1733454667402,-291.125427,0.0002588,7]
[344428722,1733454667412,-291.125427,0.0002588,7]
[344428723,1733454667422,-627.547047,0.0002588,7]
[344428724,1733454667432,-627.547047,0.0002588,7]
[344428725,1733454667442,-206.67154,0.0002588,7]
[344428726,1733454667451,-206.67154,0.0002588,7]
[344428727,1733454667460,-442.521793,0.0002588,7]
[344428728,1733454667471,-442.521793,0.0002588,7]
[344428729,1733454667481,-756.59978,0.0002588,7]
[344428730,1733454667490,-756.59978,0.0002588,7]
[344428731,1733454667499,-221.741559,0.0002588,7]
[344428732,1733454667508,-221.741559,0.0002588,7]
[344428733,1733454667518,-151.0,0.0002588,7]
[344428734,1733454667527,-151.0,0.0002588,7]
[344428735,1733454667536,-151.0,0.0002588,7]
[344428736,1733454667546,-751.263273,0.0002588,7]
[344428737,1733454667556,-751.263273,0.0002588,7]
[344428738,1733454667565,-584.9,0.0002588,7]
[344428739,1733454667575,-584.9,0.0002588,7]
[344428740,1733454667584,-225.910357,0.0002588,7]
[344428741,1733454667593,-225.910357,0.0002588,7]
[344428742,1733454667603,-2506.479702,0.0002588,7]
[344428743,1733454667612,-2506.479702,0.0002588,7]
[344428744,1733454667622,-1681.373237,0.0002588,7]
[344428745,1733454667631,-1681.373237,0.0002588,7]
[344428746,1733454667640,-151.0,0.0002588,7]
[344428747,1733454667649,-151.0,0.0002588,7]
[344428748,1733454667658,-3369.620916,0.0002588,7]
[344428749,1733454667668,-3369.620916,0.0002588,7]
[344428750,1733454667677,-3024.45796,0.0002588,7]
[344428751,1733454667686,-3024.45796,0.0002588,7]
[344428752,1733454667695,-661.905607,0.0002588,7]
[344428753,1733454667705,-661.905607,0.0002588,7]
[344428754,1733454667714,-151.0,0.0002588,7]
[344428755,1733454667823,-151.0,0.0002588,7]
[344428756,1733454667834,-151.0,0.0002588,7]
[344428757,1733454667843,-151.0,0.0002588,7]
[344428758,1733454667852,-188.020663,0.0002588,7]
[344428759,1733454667862,-603.64818877,0.00025916,4]
[344428760,1733454667871,-386.259157,0.00025916,4]
[344428761,1733454667883,-150.0,0.00025922,4]
[344428762,1733454667892,-150.0,0.00025933,4]
[344428763,1733454667901,-435.43,0.0002594,2]
[344428764,1733454667910,-435.43,0.0002594,2]
[344428765,1733454667923,-435.43,0.0002594,2]
[344428766,1733454667932,-768.05,0.0002594,2]
[344428767,1733454667942,-768.05,0.0002594,2]
[344428768,1733454667951,-435.43,0.0002594,2]
[344428769,1733454667963,-768.05,0.0002594,2]
[344428770,1733454667976,-768.05,0.0002594,2]
[344428771,1733454667985,-435.43,0.0002594,2]
[344428772,1733454667994,-1535.88,0.0002594,2]
[344428773,1733454668004,-768.15,0.0002594,2]
[344428774,1733454668014,-435.43,0.0002594,2]
[344428775,1733454668023,-435.43,0.0002594,2]
[344428776,1733454668033,-150.0,0.00025942,120]
[344428777,1733454668042,-1500.0,0.00025947,7]
[344428778,1733454668051,-1700.0,0.00025965,7]
[344428779,1733454668060,-505.46098315,0.00025965,7]
[344428780,1733454668070,-417.84907992,0.00025986,2]
[344428781,1733454668079,-80000.0,0.00026,30]
[344428782,1733454668088,-4316.53689505,0.00026,2]
[344428783,1733454668097,-728.42777381,0.00026,30]
[344428784,1733454668106,-4433.65,0.00026,2]
[344428785,1733454668115,-1000.0,0.00026,30]
[344428786,1733454668125,-782.0,0.00026,14]
[344428787,1733454668134,-2110.0,0.00026013,2]
[344428788,1733454668143,-603.64818877,0.00026015,4]
[344428789,1733454668152,-386.259157,0.00026015,4]
[344428790,1733454668161,-1500.0,0.00026027,7]
[344428791,1733454668171,-626.02,0.00026027,2]
[344428792,1733454668180,-519.54675466,0.0002604,2]
[344428793,1733454668189,-150.0,0.00026078,4]
[344428794,1733454668198,-150.0,0.00026096,4]
[344428795,1733454668209,-881.00084627,0.00026096,4]
[344428796,1733454668221,-1500.0,0.00026108,7]
[344428797,1733454668230,-603.64818877,0.00026115,4]
[344428798,1733454668239,-386.259157,0.00026115,4]
[344428799,1733454668249,-150.0,0.00026119,4]
[344428800,1733454668258,-150.0,0.00026148,4]
[344428801,1733454668267,-333.120505,0.00026148,10]
[344428802,1733454668277,-5000.0,0.0002615,15]
[344428803,1733454668286,-1500.0,0.00026189,7]
[344428804,1733454668295,-603.64818877,0.00026214,4]
[344428805,1733454668305,-386.259157,0.00026214,4]
[344428806,1733454668314,-1009.28,0.0002622,2]
[344428807,1733454668324,-1009.28,0.0002622,2]
[344428808,1733454668334,-306.38,0.00026221,2]
[344428809,1733454668343,-150.0,0.00026223,4]
[344428810,1733454668352,-1500.0,0.00026269,7]
[344428811,1733454668361,-603.64818877,0.00026314,4]
[344428812,1733454668371,-386.259157,0.00026314,4]
[344428813,1733454668380,-150.0,0.00026316,4]
[344428814,1733454668389,-200.0,0.0002632,120]
[344428815,1733454668398,-5000.0,0.00026348,31]
[344428816,1733454668407,-1500.0,0.0002635,7]
[344428817,1733454668416,-150.0,0.00026368,4]
[344428818,1733454668425,-200.13942452,0.0002637,4]
[344428819,1733454668435,-26209.25805983,0.000264,2]
[344428820,1733454668444,-603.64818877,0.00026413,4]
[344428821,1733454668453,-386.259157,0.00026413,4]
[344428822,1733454668463,-1500.0,0.0002643,7]
[344428823,1733454668477,-333.120505,0.00026448,10]
[344428824,1733454668486,-500.0,0.00026484,120]
[344428825,1733454668495,-2000.0,0.00026499,2]
[344428826,1733454668504,-3000.0,0.000265,2]
[344428827,1733454668513,-782.0,0.000265,14]
[344428828,1733454668523,-202.0,0.0002651,2]
[344428829,1733454668532,-201.0,0.0002651,2]
[344428830,1733454668541,-1500.0,0.00026511,7]
[344428831,1733454668551,-2400.0,0.00026513,7]
[344428832,1733454668559,-500.0,0.00026513,7]
[344428833,1733454668569,-2110.0,0.00026513,2]
[344428834,1733454668578,-603.64818877,0.00026513,4]
[344428835,1733454668587,-261.9030699,0.00026513,4]
[344428836,1733454668596,-168.52892217,0.00026513,4]
[344428837,1733454668606,-386.259157,0.00026513,4]
[344428838,1733454668615,-150.6361931,0.00026513,4]
[344428839,1733454668624,-214.48424964,0.00026513,4]
[344428840,1733454668633,-229.37552293,0.00026513,4]
[344428841,1733454668643,-273.69074756,0.00026513,4]
[344428842,1733454668651,-298.7005121,0.00026513,4]
[344428843,1733454668660,-230.35479941,0.00026513,4]
[344428844,1733454668670,-258.91234854,0.00026513,4]
[344428845,1733454668679,-177.32979001,0.00026513,4]
[344428846,1733454668688,-2994.81044405,0.00026513,7]
[344428847,1733454668697,-1500.0,0.00026591,7]
[344428848,1733454668706,-150.0,0.00026613,120]
[344428849,1733454668715,-1500.0,0.00026672,7]
[344428850,1733454668728,-153.84,0.000267,31]
[344428851,1733454668737,-153.84,0.000267,31]
[344428852,1733454668746,-153.84,0.000267,31]
[344428853,1733454668755,-153.84,0.000267,31]
[344428854,1733454668764,-153.84,0.000267,31]
[344428855,1733454668774,-153.84,0.000267,31]
[344428856,1733454668783,-153.84,0.000267,31]
[344428857,1733454668792,-153.84,0.000267,31]
[344428858,1733454668802,-153.84,0.000267,31]
[344428859,1733454668811,-153.84,0.000267,31]
[344428860,1733454668820,-153.84,0.000267,31]
[344428861,1733454668829,-153.84,0.000267,31]
[344428862,1733454668838,-153.84,0.000267,31]
[344428863,1733454668847,-153.84,0.000267,31]
[344428864,1733454668857,-153.84,0.000267,31]
[344428865,1733454668867,-153.84,0.000267,31]
[344428866,1733454668878,-153.84,0.000267,31]
[344428867,1733454668888,-153.84,0.000267,31]
[344428868,1733454668898,-153.84,0.000267,31]
[344428869,1733454668906,-153.84,0.000267,31]
[344428870,1733454668915,-306.82,0.000267,2]
[344428871,1733454668926,-306.82,0.000267,2]
[344428872,1733454668936,-333.120505,0.00026748,10]
[344428873,1733454668945,-1500.0,0.00026753,7]
[344428874,1733454668954,-540.0,0.000268,120]
[344428875,1733454668963,-1101.19,0.00026821,120]
[344428876,1733454668977,-1101.19,0.00026821,120]
[344428877,1733454668986,-1101.19,0.00026821,120]
[344428878,1733454668995,-1101.19,0.00026821,120]
[344428879,1733454669004,-1101.19,0.00026821,120]
[344428880,1733454669013,-1101.19,0.00026821,120]
[344428881,1733454669023,-1101.19,0.00026821,120]
[344428882,1733454669032,-1101.19,0.00026821,120]
[344428883,1733454669042,-1101.19,0.00026821,120]
[344428884,1733454669051,-1101.19,0.00026821,120]
[344428885,1733454669060,-1101.19,0.00026821,120]
[344428886,1733454669069,-1101.19,0.00026821,120]
[344428887,1733454669078,-1101.19,0.00026821,120]
[344428888,1733454669088,-1101.19,0.00026821,120]
[344428889,1733454669097,-1101.19,0.00026821,120]
[344428890,1733454669106,-1101.19,0.00026821,120]
[344428891,1733454669115,-1101.19,0.00026821,120]
[344428892,1733454669124,-1101.19,0.00026821,120]
[344428893,1733454669133,-1101.19,0.00026821,120]
[344428894,1733454669142,-1101.19,0.00026821,120]
[344428895,1733454669151,-1101.19,0.00026821,120]
[344428896,1733454669160,-1101.19,0.00026821,120]
[344428897,1733454669170,-1101.19,0.00026821,120]
[344428898,1733454669179,-1101.3359055,0.00026821,120]
[344428899,1733454669189,-1500.0,0.00026833,7]
[344428900,1733454669198,-150.0,0.00026843,120]
[344428901,1733454669207,-150.0,0.00026848,120]
[344428902,1733454669217,-604.0,0.00026849,120]
[344428903,1733454669226,-768.05,0.00026899,2]
[344428904,1733454669235,-746.33,0.00026899,2]
[344428905,1733454669244,-1319.24,0.00026899,2]
[344428906,1733454669254,-1500.0,0.00026914,7]
[344428907,1733454669264,-935.4,0.00026994,30]
[344428908,1733454669273,-1500.0,0.00026994,7]
[344428909,1733454669282,-250000.0,0.00027,12]
[344428910,1733454669292,-987.67598561,0.00027,2]
[344428911,1733454669302,-250.0,0.00027,2]
[344428912,1733454669311,-380.96036684,0.00027,2]
[344428913,1733454669321,-38053.51589852,0.00027,2]
[344428914,1733454669330,-10518.86674695,0.00027,10]
[344428915,1733454669340,-1000.0,0.00027,120]
[344428916,1733454669349,-250.893764,0.00027,120]
[344428917,1733454669358,-678.16324874,0.00027,120]
[344428918,1733454669368,-682.7365204,0.00027,120]
[344428919,1733454669377,-2000.0,0.00027,120]
[344428920,1733454669386,-1700.0,0.00027,30]
[344428921,1733454669395,-80000.0,0.00027,30]
[344428922,1733454669404,-2000.0,0.00027,2]
[344428923,1733454669414,-782.0,0.00027,15]